[Event "Titled Tuesday Blitz August 22 Early 2023"]
[White "Kushko, Dmitriy"]
[Black "Garakov, Mikhael"]
[WhiteFideId "14162261"]
[BlackFideId "4169034"]
[WhiteElo "2771"]
[BlackElo "2590"]
[Result "0-1"]
[Round "7"]
[TimeControl "180+1"]
[Date "2023.08.22"]
[WhiteClock "0:00:02"]
[BlackClock "0:00:03"]
[Board "45"]

1. Nf3 {[%clk 0:03:00]}  c5 {[%clk 0:02:59]} 2. e4 {[%clk 0:03:00]}  e6 {[%clk 0:02:59]} 3. d4 {[%clk 0:03:00]}  cxd4 {[%clk 0:02:59]} 4. Nxd4 {[%clk 0:03:00]}  Nc6 {[%clk 0:03:00]} 5. Bf4 {[%clk 0:02:59]}  Nf6 {[%clk 0:02:38]} 6. Nb5 {[%clk 0:02:57]}  e5 {[%clk 0:02:38]} 7. Bg5 {[%clk 0:02:57]}  d6 {[%clk 0:02:16]} 8. Bxf6 {[%clk 0:02:52]}  gxf6 {[%clk 0:02:15]} 9. Nd2 {[%clk 0:02:49]}  a6 {[%clk 0:02:12]} 10. Nc3 {[%clk 0:02:49]}  f5 {[%clk 0:02:12]} 11. Qh5 {[%clk 0:02:46]}  Nd4 {[%clk 0:02:00]} 12. Bc4 {[%clk 0:02:43]}  Qf6 {[%clk 0:00:53]} 13. Nd5 {[%clk 0:02:39]}  Qg6 {[%clk 0:00:53]} 14. Qxg6 {[%clk 0:02:23]}  hxg6 {[%clk 0:00:54]} 15. Nc7+ {[%clk 0:02:23]}  Kd8 {[%clk 0:00:54]} 16. Nxa8 {[%clk 0:02:23]}  Nxc2+ {[%clk 0:00:55]} 17. Ke2 {[%clk 0:02:23]}  Nxa1 {[%clk 0:00:56]} 18. Rxa1 {[%clk 0:02:19]}  Rxh2 {[%clk 0:00:56]} 19. g3 {[%clk 0:02:02]}  fxe4 {[%clk 0:00:46]} 20. Nxe4 {[%clk 0:01:47]}  Bg4+ {[%clk 0:00:44]} 21. Kd3 {[%clk 0:01:39]}  f5 {[%clk 0:00:39]} 22. Ng5 {[%clk 0:01:30]}  e4+ {[%clk 0:00:33]} 23. Kc3 {[%clk 0:00:59]}  Bg7+ {[%clk 0:00:31]} 24. Kb3 {[%clk 0:00:57]}  Bf6 {[%clk 0:00:28]} 25. Ne6+ {[%clk 0:00:32]}  Ke7 {[%clk 0:00:28]} 26. Nf4 {[%clk 0:00:15]}  b5 {[%clk 0:00:25]} 27. Nxg6+ {[%clk 0:00:10]}  Kd7 {[%clk 0:00:21]} 28. Bd5 {[%clk 0:00:09]}  Rxf2 {[%clk 0:00:19]} 29. Rb1 {[%clk 0:00:08]}  Be2 {[%clk 0:00:18]} 30. Nb6+ {[%clk 0:00:05]}  Kc7 {[%clk 0:00:17]} 31. Na8+ {[%clk 0:00:05]}  Kd7 {[%clk 0:00:16]} 32. Rc1 {[%clk 0:00:04]}  Bd3 {[%clk 0:00:13]} 33. Rc7+ {[%clk 0:00:04]}  Kd8 {[%clk 0:00:13]} 34. Kb4 {[%clk 0:00:04]}  Rxb2+ {[%clk 0:00:11]} 35. Ka5 {[%clk 0:00:05]}  Rc2 {[%clk 0:00:09]} 36. Rf7 {[%clk 0:00:03]}  Bc3+ {[%clk 0:00:09]} 37. Kb6 {[%clk 0:00:03]}  Bd4+ {[%clk 0:00:09]} 38. Kb7 {[%clk 0:00:03]}  Bc4 {[%clk 0:00:07]} 39. Nf4 {[%clk 0:00:02]}  e3 {[%clk 0:00:06]} 40. Ne6+ {[%clk 0:00:01]}  Ke8 {[%clk 0:00:05]} 41. Nac7+ {[%clk 0:00:02]}  Kxf7 {[%clk 0:00:04]} 42. Ng5+ {[%clk 0:00:03]}  Kg6 {[%clk 0:00:04]} 43. Nge6 {[%clk 0:00:02]}  Bxd5+ {[%clk 0:00:04]} 44. Nxd5 {[%clk 0:00:03]}  e2 {[%clk 0:00:05]} 45. Nxd4 {[%clk 0:00:02]}  e1=Q {[%clk 0:00:04]} 46. Nf4+ {[%clk 0:00:03]}  Kf6 {[%clk 0:00:03]} 47. Nxc2 {[%clk 0:00:02]}  Qe4+ {[%clk 0:00:03]} 0-1


[Site "https://www.chess.com"]

[Event "Titled Tuesday Blitz August 22 Early 2023"]
[White "Ahmad, Khagan"]
[Black "Kosteniuk, Alexandra"]
[WhiteFideId "13431552"]
[BlackFideId "4128125"]
[WhiteElo "2601"]
[BlackElo "2755"]
[Result "1-0"]
[Round "7"]
[TimeControl "180+1"]
[Date "2023.08.22"]
[WhiteClock "0:00:17"]
[BlackClock "0:00:01"]
[Board "46"]

1. Nf3 {[%clk 0:03:00]}  f5 {[%clk 0:02:59]} 2. d4 {[%clk 0:02:56]}  Nf6 {[%clk 0:02:59]} 3. Nc3 {[%clk 0:02:55]}  g6 {[%clk 0:02:57]} 4. Bg5 {[%clk 0:02:55]}  Bg7 {[%clk 0:02:57]} 5. Bxf6 {[%clk 0:02:55]}  Bxf6 {[%clk 0:02:57]} 6. e4 {[%clk 0:02:56]}  fxe4 {[%clk 0:02:58]} 7. Nxe4 {[%clk 0:02:57]}  Bg7 {[%clk 0:02:58]} 8. h4 {[%clk 0:02:47]}  d5 {[%clk 0:02:45]} 9. Neg5 {[%clk 0:02:35]}  c5 {[%clk 0:02:30]} 10. h5 {[%clk 0:02:17]}  h6 {[%clk 0:02:22]} 11. hxg6 {[%clk 0:01:38]}  Qb6 {[%clk 0:02:15]} 12. Nf7 {[%clk 0:01:32]}  Rg8 {[%clk 0:02:15]} 13. N7e5 {[%clk 0:01:04]}  cxd4 {[%clk 0:02:08]} 14. Bd3 {[%clk 0:01:01]}  Nc6 {[%clk 0:02:00]} 15. Nxc6 {[%clk 0:00:51]}  bxc6 {[%clk 0:01:38]} 16. O-O {[%clk 0:00:51]}  Bg4 {[%clk 0:01:34]} 17. Qe1 {[%clk 0:00:40]}  Bxf3 {[%clk 0:01:19]} 18. Qe6 {[%clk 0:00:39]}  Rf8 {[%clk 0:01:17]} 19. gxf3 {[%clk 0:00:35]}  Qc7 {[%clk 0:01:05]} 20. Rae1 {[%clk 0:00:35]}  Qd7 {[%clk 0:00:55]} 21. f4 {[%clk 0:00:33]}  Rxf4 {[%clk 0:00:47]} 22. Qg8+ {[%clk 0:00:24]}  Bf8 {[%clk 0:00:47]} 23. Re6 {[%clk 0:00:23]}  O-O-O {[%clk 0:00:43]} 24. Rfe1 {[%clk 0:00:20]}  h5 {[%clk 0:00:37]} 25. Qh7 {[%clk 0:00:20]}  Rf6 {[%clk 0:00:24]} 26. Rxf6 {[%clk 0:00:17]}  exf6 {[%clk 0:00:24]} 27. Qxd7+ {[%clk 0:00:17]}  Kxd7 {[%clk 0:00:22]} 28. Bf5+ {[%clk 0:00:17]}  Kc7 {[%clk 0:00:12]} 29. Re6 {[%clk 0:00:17]}  Bg7 {[%clk 0:00:04]} 30. Re7+ {[%clk 0:00:17]}  Kb6 {[%clk 0:00:04]} 31. Rxg7 {[%clk 0:00:17]}  c5 {[%clk 0:00:04]} 32. Rf7 {[%clk 0:00:18]}  c4 {[%clk 0:00:01]} 33. g7 {[%clk 0:00:17]} 1-0


[Site "https://www.chess.com"]

[Event "Titled Tuesday Blitz August 22 Early 2023"]
[White "Ezat, Mohamed"]
[Black "Lei, Tingjie"]
[WhiteFideId "10600906"]
[BlackFideId "8605114"]
[WhiteElo "2588"]
[BlackElo "2749"]
[Result "0-1"]
[Round "7"]
[TimeControl "180+1"]
[Date "2023.08.22"]
[WhiteClock "0:00:12"]
[BlackClock "0:00:16"]
[Board "47"]

1. d4 {[%clk 0:02:59]}  Nf6 {[%clk 0:02:59]} 2. c4 {[%clk 0:02:59]}  e6 {[%clk 0:02:59]} 3. Nc3 {[%clk 0:02:59]}  Bb4 {[%clk 0:02:58]} 4. e3 {[%clk 0:03:00]}  O-O {[%clk 0:02:58]} 5. a3 {[%clk 0:03:00]}  Bxc3+ {[%clk 0:02:54]} 6. bxc3 {[%clk 0:03:01]}  c5 {[%clk 0:02:53]} 7. Bd3 {[%clk 0:03:01]}  Nc6 {[%clk 0:02:49]} 8. Ne2 {[%clk 0:03:00]}  b6 {[%clk 0:02:46]} 9. O-O {[%clk 0:03:01]}  Ba6 {[%clk 0:02:40]} 10. e4 {[%clk 0:03:01]}  Ne8 {[%clk 0:02:39]} 11. Ng3 {[%clk 0:03:01]}  cxd4 {[%clk 0:02:35]} 12. cxd4 {[%clk 0:03:01]}  Nxd4 {[%clk 0:02:31]} 13. f4 {[%clk 0:03:01]}  Rc8 {[%clk 0:02:01]} 14. f5 {[%clk 0:03:00]}  f6 {[%clk 0:01:55]} 15. Qa4 {[%clk 0:02:35]}  Bb7 {[%clk 0:01:49]} 16. Be3 {[%clk 0:02:24]}  Nc6 {[%clk 0:01:33]} 17. c5 {[%clk 0:02:22]}  Ne5 {[%clk 0:01:29]} 18. Ba6 {[%clk 0:01:51]}  Bxa6 {[%clk 0:01:15]} 19. Qxa6 {[%clk 0:01:51]}  Nc7 {[%clk 0:00:57]} 20. Qxa7 {[%clk 0:01:29]}  b5 {[%clk 0:00:56]} 21. Qa5 {[%clk 0:01:22]}  Ra8 {[%clk 0:00:36]} 22. Qc3 {[%clk 0:01:17]}  Ra4 {[%clk 0:00:35]} 23. Rfd1 {[%clk 0:01:09]}  Rc4 {[%clk 0:00:32]} 24. Qb3 {[%clk 0:01:04]}  Qe7 {[%clk 0:00:25]} 25. Kh1 {[%clk 0:00:47]}  Ra8 {[%clk 0:00:21]} 26. Rd2 {[%clk 0:00:28]}  Rca4 {[%clk 0:00:20]} 27. Rad1 {[%clk 0:00:26]}  Rxa3 {[%clk 0:00:19]} 28. Qb4 {[%clk 0:00:17]}  Rxe3 {[%clk 0:00:19]} 29. Qd4 {[%clk 0:00:15]}  Rea3 {[%clk 0:00:17]} 30. Qd6 {[%clk 0:00:15]}  Qxd6 {[%clk 0:00:18]} 31. cxd6 {[%clk 0:00:16]}  Na6 {[%clk 0:00:13]} 32. fxe6 {[%clk 0:00:16]}  dxe6 {[%clk 0:00:13]} 33. d7 {[%clk 0:00:16]}  Rd8 {[%clk 0:00:14]} 34. Rd6 {[%clk 0:00:16]}  Nc5 {[%clk 0:00:14]} 35. Ne2 {[%clk 0:00:14]}  Rxd7 {[%clk 0:00:14]} 36. Rxd7 {[%clk 0:00:14]}  Nexd7 {[%clk 0:00:14]} 37. Nd4 {[%clk 0:00:15]}  Rd3 {[%clk 0:00:14]} 38. Rxd3 {[%clk 0:00:14]}  Nxd3 {[%clk 0:00:14]} 39. Nxb5 {[%clk 0:00:15]}  Kf7 {[%clk 0:00:14]} 40. Nd4 {[%clk 0:00:14]}  Nf2+ {[%clk 0:00:12]} 41. Kg1 {[%clk 0:00:14]}  Nxe4 {[%clk 0:00:13]} 42. h3 {[%clk 0:00:15]}  e5 {[%clk 0:00:13]} 43. Nb5 {[%clk 0:00:14]}  Ke6 {[%clk 0:00:13]} 44. Nc7+ {[%clk 0:00:14]}  Kd6 {[%clk 0:00:13]} 45. Ne8+ {[%clk 0:00:15]}  Ke7 {[%clk 0:00:13]} 46. Nxg7 {[%clk 0:00:15]}  Nd6 {[%clk 0:00:12]} 47. Nh5 {[%clk 0:00:16]}  f5 {[%clk 0:00:12]} 48. Kf2 {[%clk 0:00:14]}  Nf6 {[%clk 0:00:12]} 49. Ng3 {[%clk 0:00:15]}  Nfe4+ {[%clk 0:00:12]} 50. Nxe4 {[%clk 0:00:15]}  Nxe4+ {[%clk 0:00:13]} 51. Ke3 {[%clk 0:00:14]}  Nd6 {[%clk 0:00:14]} 52. g4 {[%clk 0:00:14]}  f4+ {[%clk 0:00:14]} 53. Kf3 {[%clk 0:00:15]}  Kf6 {[%clk 0:00:15]} 54. h4 {[%clk 0:00:15]}  h6 {[%clk 0:00:15]} 55. Kf2 {[%clk 0:00:15]}  e4 {[%clk 0:00:15]} 56. Ke2 {[%clk 0:00:15]}  Nc4 {[%clk 0:00:16]} 57. Kf2 {[%clk 0:00:16]}  Ne5 {[%clk 0:00:16]} 58. Ke2 {[%clk 0:00:12]}  e3 {[%clk 0:00:16]} 0-1


[Site "https://www.chess.com"]

[Event "Titled Tuesday Blitz August 22 Early 2023"]
[White "Chyzy, Jakub"]
[Black "Hulka, Valentyn"]
[WhiteFideId "21806209"]
[BlackFideId "34107061"]
[WhiteElo "2586"]
[BlackElo "2729"]
[Result "0-1"]
[Round "7"]
[TimeControl "180+1"]
[Date "2023.08.22"]
[WhiteClock "0:00:00"]
[BlackClock "0:00:13"]
[Board "49"]

1. b3 {[%clk 0:03:00]}  e5 {[%clk 0:02:57]} 2. Bb2 {[%clk 0:03:01]}  Nc6 {[%clk 0:02:58]} 3. e3 {[%clk 0:03:01]}  Nf6 {[%clk 0:02:59]} 4. f4 {[%clk 0:03:00]}  exf4 {[%clk 0:02:56]} 5. exf4 {[%clk 0:03:01]}  d5 {[%clk 0:02:56]} 6. Nf3 {[%clk 0:03:01]}  Bd6 {[%clk 0:02:57]} 7. Ne5 {[%clk 0:03:00]}  Qe7 {[%clk 0:02:55]} 8. d4 {[%clk 0:02:59]}  O-O {[%clk 0:02:54]} 9. Bd3 {[%clk 0:02:56]}  Ne4 {[%clk 0:02:49]} 10. Bxe4 {[%clk 0:02:54]}  dxe4 {[%clk 0:02:48]} 11. O-O {[%clk 0:02:46]}  f6 {[%clk 0:02:46]} 12. Nxc6 {[%clk 0:02:45]}  bxc6 {[%clk 0:02:47]} 13. c4 {[%clk 0:02:44]}  e3 {[%clk 0:02:43]} 14. Qf3 {[%clk 0:02:23]}  Bb4 {[%clk 0:02:22]} 15. Nc3 {[%clk 0:02:18]}  Bf5 {[%clk 0:02:07]} 16. a3 {[%clk 0:02:06]}  Bxc3 {[%clk 0:01:56]} 17. Bxc3 {[%clk 0:02:07]}  Rfe8 {[%clk 0:01:56]} 18. Rfe1 {[%clk 0:02:01]}  Bc2 {[%clk 0:01:54]} 19. b4 {[%clk 0:01:44]}  Qe6 {[%clk 0:01:51]} 20. d5 {[%clk 0:01:43]}  cxd5 {[%clk 0:01:50]} 21. cxd5 {[%clk 0:01:43]}  Qe4 {[%clk 0:01:39]} 22. Qg3 {[%clk 0:00:53]}  Kh8 {[%clk 0:01:31]} 23. Qh4 {[%clk 0:00:47]}  Bb3 {[%clk 0:01:19]} 24. Qg3 {[%clk 0:00:35]}  Bxd5 {[%clk 0:01:16]} 25. Rad1 {[%clk 0:00:35]}  Rad8 {[%clk 0:01:01]} 26. Rd4 {[%clk 0:00:34]}  Qc2 {[%clk 0:00:53]} 27. Ba1 {[%clk 0:00:33]}  c6 {[%clk 0:00:48]} 28. h4 {[%clk 0:00:32]}  e2 {[%clk 0:00:40]} 29. h5 {[%clk 0:00:19]}  h6 {[%clk 0:00:40]} 30. Qf2 {[%clk 0:00:16]}  Rd7 {[%clk 0:00:30]} 31. f5 {[%clk 0:00:15]}  Rde7 {[%clk 0:00:29]} 32. Rg4 {[%clk 0:00:15]}  Re4 {[%clk 0:00:26]} 33. Rg6 {[%clk 0:00:14]}  Bf7 {[%clk 0:00:22]} 34. Qxa7 {[%clk 0:00:05]}  Bxg6 {[%clk 0:00:20]} 35. hxg6 {[%clk 0:00:06]}  Qd2 {[%clk 0:00:17]} 36. Qf2 {[%clk 0:00:01]}  Rf4 {[%clk 0:00:15]} 37. Qg3 {[%clk 0:00:01]}  Qe3+ {[%clk 0:00:15]} 38. Qxe3 {[%clk 0:00:01]}  Rxe3 {[%clk 0:00:15]} 39. Bb2 {[%clk 0:00:00]}  h5 {[%clk 0:00:13]} 0-1


[Site "https://www.chess.com"]

[Event "Titled Tuesday Blitz August 22 Early 2023"]
[White "Preotu, Razvan"]
[Black "Chor, Kevin"]
[WhiteFideId "2613280"]
[BlackFideId "2090740"]
[WhiteElo "2710"]
[BlackElo "2566"]
[Result "1-0"]
[Round "7"]
[TimeControl "180+1"]
[Date "2023.08.22"]
[WhiteClock "0:00:42"]
[BlackClock "0:00:19"]
[Board "51"]

1. e4 {[%clk 0:03:00]}  c5 {[%clk 0:03:00]} 2. Nf3 {[%clk 0:03:00]}  Nc6 {[%clk 0:03:00]} 3. Bb5 {[%clk 0:03:00]}  Qb6 {[%clk 0:03:00]} 4. Bxc6 {[%clk 0:02:58]}  Qxc6 {[%clk 0:02:55]} 5. O-O {[%clk 0:02:56]}  Qxe4 {[%clk 0:02:51]} 6. Re1 {[%clk 0:02:56]}  Qg4 {[%clk 0:02:45]} 7. h3 {[%clk 0:02:53]}  Qh5 {[%clk 0:02:42]} 8. d4 {[%clk 0:02:53]}  cxd4 {[%clk 0:02:25]} 9. Qxd4 {[%clk 0:02:54]}  d6 {[%clk 0:02:15]} 10. Nc3 {[%clk 0:02:52]}  Nf6 {[%clk 0:02:13]} 11. Bg5 {[%clk 0:02:46]}  Bd7 {[%clk 0:01:43]} 12. Bxf6 {[%clk 0:02:27]}  gxf6 {[%clk 0:01:41]} 13. Nd5 {[%clk 0:02:25]}  Kd8 {[%clk 0:01:24]} 14. Nxf6 {[%clk 0:01:37]}  Qc5 {[%clk 0:01:22]} 15. Qxc5 {[%clk 0:01:27]}  dxc5 {[%clk 0:01:23]} 16. Nxd7 {[%clk 0:01:14]}  Kxd7 {[%clk 0:01:24]} 17. Rad1+ {[%clk 0:01:06]}  Kc7 {[%clk 0:01:16]} 18. Ng5 {[%clk 0:00:56]}  Rg8 {[%clk 0:00:35]} 19. Nxf7 {[%clk 0:00:54]}  Rg7 {[%clk 0:00:35]} 20. Ne5 {[%clk 0:00:52]}  Rd8 {[%clk 0:00:35]} 21. Rxd8 {[%clk 0:00:50]}  Kxd8 {[%clk 0:00:36]} 22. Rd1+ {[%clk 0:00:51]}  Kc7 {[%clk 0:00:36]} 23. Rd7+ {[%clk 0:00:50]}  Kb6 {[%clk 0:00:35]} 24. Rd8 {[%clk 0:00:48]}  Rg5 {[%clk 0:00:29]} 25. f4 {[%clk 0:00:42]}  Rf5 {[%clk 0:00:19]} 26. Rxf8 {[%clk 0:00:42]} 1-0


[Site "https://www.chess.com"]

[Event "Titled Tuesday Blitz August 22 Early 2023"]
[White "Petrosian, Karlen"]
[Black "Kashefi, Amir Hosein"]
[WhiteFideId "4176146"]
[BlackFideId "12557935"]
[WhiteElo "2703"]
[BlackElo "2557"]
[Result "1-0"]
[Round "7"]
[TimeControl "180+1"]
[Date "2023.08.22"]
[WhiteClock "0:00:21"]
[BlackClock "0:00:02"]
[Board "53"]

1. e4 {[%clk 0:02:57]}  c6 {[%clk 0:02:53]} 2. Nf3 {[%clk 0:02:54]}  d5 {[%clk 0:02:53]} 3. d3 {[%clk 0:02:55]}  dxe4 {[%clk 0:02:53]} 4. dxe4 {[%clk 0:02:56]}  Qxd1+ {[%clk 0:02:53]} 5. Kxd1 {[%clk 0:02:57]}  Bg4 {[%clk 0:02:52]} 6. Be2 {[%clk 0:02:57]}  Nd7 {[%clk 0:02:52]} 7. Nfd2 {[%clk 0:02:58]}  Bxe2+ {[%clk 0:02:51]} 8. Kxe2 {[%clk 0:02:59]}  e5 {[%clk 0:02:51]} 9. a4 {[%clk 0:02:58]}  f6 {[%clk 0:02:50]} 10. Nb3 {[%clk 0:02:57]}  Ne7 {[%clk 0:02:47]} 11. Be3 {[%clk 0:02:56]}  Nc8 {[%clk 0:02:45]} 12. f3 {[%clk 0:02:55]}  Nd6 {[%clk 0:02:41]} 13. Na3 {[%clk 0:02:44]}  a6 {[%clk 0:02:34]} 14. Rhd1 {[%clk 0:02:37]}  Be7 {[%clk 0:02:29]} 15. a5 {[%clk 0:02:33]}  O-O-O {[%clk 0:02:06]} 16. Rd3 {[%clk 0:02:25]}  Nf8 {[%clk 0:01:51]} 17. Rad1 {[%clk 0:02:24]}  Ne6 {[%clk 0:01:50]} 18. Bb6 {[%clk 0:02:23]}  Nf4+ {[%clk 0:01:49]} 19. Kf1 {[%clk 0:01:48]}  Nxd3 {[%clk 0:01:45]} 20. Bxd8 {[%clk 0:01:44]}  Rxd8 {[%clk 0:01:17]} 21. Rxd3 {[%clk 0:01:41]}  Nb5 {[%clk 0:01:09]} 22. Rxd8+ {[%clk 0:01:38]}  Bxd8 {[%clk 0:01:08]} 23. Nc4 {[%clk 0:01:38]}  Bc7 {[%clk 0:01:08]} 24. c3 {[%clk 0:01:33]}  Kd7 {[%clk 0:01:07]} 25. Ke2 {[%clk 0:01:33]}  Nd6 {[%clk 0:01:06]} 26. Nc5+ {[%clk 0:01:29]}  Kc8 {[%clk 0:01:03]} 27. Nxd6+ {[%clk 0:01:22]}  Bxd6 {[%clk 0:01:04]} 28. Na4 {[%clk 0:01:20]}  Kd7 {[%clk 0:01:02]} 29. b4 {[%clk 0:01:15]}  c5 {[%clk 0:00:59]} 30. bxc5 {[%clk 0:01:14]}  Bc7 {[%clk 0:00:59]} 31. Kd3 {[%clk 0:01:13]}  Bxa5 {[%clk 0:00:59]} 32. Kc4 {[%clk 0:01:11]}  Kc6 {[%clk 0:00:59]} 33. Nb2 {[%clk 0:01:10]}  Bd8 {[%clk 0:00:59]} 34. Nd3 {[%clk 0:01:07]}  a5 {[%clk 0:00:58]} 35. Kb3 {[%clk 0:01:07]}  Kb5 {[%clk 0:00:42]} 36. c4+ {[%clk 0:01:07]}  Ka6 {[%clk 0:00:42]} 37. Ka4 {[%clk 0:01:06]}  Be7 {[%clk 0:00:42]} 38. Kb3 {[%clk 0:01:06]}  g6 {[%clk 0:00:37]} 39. g4 {[%clk 0:01:02]}  Bf8 {[%clk 0:00:30]} 40. Ka4 {[%clk 0:01:01]}  Be7 {[%clk 0:00:30]} 41. h3 {[%clk 0:01:01]}  Bf8 {[%clk 0:00:29]} 42. Kb3 {[%clk 0:00:55]}  Be7 {[%clk 0:00:29]} 43. Ka4 {[%clk 0:00:53]}  h5 {[%clk 0:00:28]} 44. Kb3 {[%clk 0:00:51]}  h4 {[%clk 0:00:25]} 45. Ka4 {[%clk 0:00:47]}  Bf8 {[%clk 0:00:23]} 46. f4 {[%clk 0:00:34]}  exf4 {[%clk 0:00:21]} 47. Nxf4 {[%clk 0:00:35]}  Bxc5 {[%clk 0:00:17]} 48. Nxg6 {[%clk 0:00:35]}  Bf2 {[%clk 0:00:13]} 49. Nf4 {[%clk 0:00:34]}  Bg3 {[%clk 0:00:10]} 50. Nd5 {[%clk 0:00:29]}  Be5 {[%clk 0:00:10]} 51. c5 {[%clk 0:00:29]}  Bd4 {[%clk 0:00:07]} 52. Nc7+ {[%clk 0:00:29]}  Ka7 {[%clk 0:00:07]} 53. Kb5 {[%clk 0:00:29]}  a4 {[%clk 0:00:05]} 54. Ne6 {[%clk 0:00:23]}  Bxc5 {[%clk 0:00:02]} 55. Nxc5 {[%clk 0:00:22]}  a3 {[%clk 0:00:03]} 56. Nb3 {[%clk 0:00:21]}  a2 {[%clk 0:00:04]} 57. Kb4 {[%clk 0:00:20]}  Kb6 {[%clk 0:00:05]} 58. Ka3 {[%clk 0:00:21]}  Kb5 {[%clk 0:00:04]} 59. Kxa2 {[%clk 0:00:20]}  Kc4 {[%clk 0:00:05]} 60. Kb2 {[%clk 0:00:19]}  Kd3 {[%clk 0:00:03]} 61. e5 {[%clk 0:00:20]}  fxe5 {[%clk 0:00:03]} 62. g5 {[%clk 0:00:20]}  e4 {[%clk 0:00:04]} 63. g6 {[%clk 0:00:20]}  e3 {[%clk 0:00:04]} 64. g7 {[%clk 0:00:21]}  e2 {[%clk 0:00:04]} 65. Nc1+ {[%clk 0:00:21]}  Ke3 {[%clk 0:00:01]} 66. Nxe2 {[%clk 0:00:22]}  b5 {[%clk 0:00:01]} 67. g8=Q {[%clk 0:00:23]}  b4 {[%clk 0:00:01]} 68. Qg4 {[%clk 0:00:22]}  b3 {[%clk 0:00:01]} 69. Qxh4 {[%clk 0:00:22]}  Kd2 {[%clk 0:00:02]} 70. Kxb3 {[%clk 0:00:22]}  Kd1 {[%clk 0:00:03]} 71. Kc3 {[%clk 0:00:20]}  Kxe2 {[%clk 0:00:01]} 72. Qg3 {[%clk 0:00:20]}  Kf1 {[%clk 0:00:01]} 73. Qh2 {[%clk 0:00:20]}  Ke1 {[%clk 0:00:02]} 74. Qg2 {[%clk 0:00:20]}  Kd1 {[%clk 0:00:02]} 75. Qd2# {[%clk 0:00:21]} 1-0


[Site "https://www.chess.com"]

[Event "Titled Tuesday Blitz August 22 Early 2023"]
[White "Papasimakopoulos, Alexandros"]
[Black "Al-Tarboush, Ward"]
[WhiteFideId "4244125"]
[BlackFideId "7601450"]
[WhiteElo "2699"]
[BlackElo "2542"]
[Result "1-0"]
[Round "7"]
[TimeControl "180+1"]
[Date "2023.08.22"]
[WhiteClock "0:00:05"]
[BlackClock "0:00:00"]
[Board "55"]

1. d4 {[%clk 0:03:00]}  d5 {[%clk 0:02:58]} 2. c4 {[%clk 0:03:01]}  c6 {[%clk 0:02:58]} 3. cxd5 {[%clk 0:03:01]}  cxd5 {[%clk 0:02:59]} 4. Bf4 {[%clk 0:03:01]}  Nf6 {[%clk 0:02:59]} 5. Nc3 {[%clk 0:03:01]}  Nc6 {[%clk 0:03:00]} 6. e3 {[%clk 0:03:01]}  Bg4 {[%clk 0:02:57]} 7. Qb3 {[%clk 0:03:01]}  Na5 {[%clk 0:02:56]} 8. Qa4+ {[%clk 0:03:01]}  Bd7 {[%clk 0:02:56]} 9. Qc2 {[%clk 0:03:02]}  e6 {[%clk 0:02:55]} 10. Nf3 {[%clk 0:03:01]}  Be7 {[%clk 0:02:53]} 11. Bd3 {[%clk 0:03:01]}  Nc6 {[%clk 0:02:52]} 12. a3 {[%clk 0:03:01]}  Nh5 {[%clk 0:02:52]} 13. Be5 {[%clk 0:03:00]}  f6 {[%clk 0:02:52]} 14. Bxh7 {[%clk 0:02:42]}  fxe5 {[%clk 0:02:25]} 15. Qg6+ {[%clk 0:02:41]}  Kf8 {[%clk 0:02:25]} 16. Qxh5 {[%clk 0:02:42]}  e4 {[%clk 0:02:23]} 17. Ne5 {[%clk 0:02:28]}  Nxe5 {[%clk 0:02:23]} 18. dxe5 {[%clk 0:02:29]}  Be8 {[%clk 0:02:24]} 19. Qh3 {[%clk 0:02:29]}  Bg6 {[%clk 0:02:23]} 20. Qxe6 {[%clk 0:02:28]}  Bxh7 {[%clk 0:02:22]} 21. Nxd5 {[%clk 0:02:28]}  Bg8 {[%clk 0:01:55]} 22. Qf5+ {[%clk 0:02:27]}  Ke8 {[%clk 0:01:56]} 23. e6 {[%clk 0:02:15]}  Rh6 {[%clk 0:01:39]} 24. Qe5 {[%clk 0:02:01]}  Bxe6 {[%clk 0:01:28]} 25. Nc7+ {[%clk 0:01:48]}  Kf7 {[%clk 0:01:29]} 26. Nxa8 {[%clk 0:01:48]}  Qxa8 {[%clk 0:01:08]} 27. Qxe4 {[%clk 0:01:43]}  Qd8 {[%clk 0:00:50]} 28. O-O {[%clk 0:01:24]}  Bd5 {[%clk 0:00:50]} 29. Qf5+ {[%clk 0:01:16]}  Rf6 {[%clk 0:00:50]} 30. Qh5+ {[%clk 0:01:15]}  Rg6 {[%clk 0:00:45]} 31. f3 {[%clk 0:01:07]}  Be6 {[%clk 0:00:33]} 32. b4 {[%clk 0:00:56]}  Qb6 {[%clk 0:00:32]} 33. Rae1 {[%clk 0:00:51]}  Bc4 {[%clk 0:00:29]} 34. Rf2 {[%clk 0:00:49]}  Kg8 {[%clk 0:00:30]} 35. Rc2 {[%clk 0:00:46]}  Bf7 {[%clk 0:00:09]} 36. Rc8+ {[%clk 0:00:44]}  Bf8 {[%clk 0:00:10]} 37. Qc5 {[%clk 0:00:41]}  Qxc5 {[%clk 0:00:08]} 38. bxc5 {[%clk 0:00:41]}  Be6 {[%clk 0:00:08]} 39. Rb8 {[%clk 0:00:32]}  Bd5 {[%clk 0:00:08]} 40. Rd1 {[%clk 0:00:29]}  Bc6 {[%clk 0:00:08]} 41. Rdd8 {[%clk 0:00:27]}  Rf6 {[%clk 0:00:08]} 42. Kf2 {[%clk 0:00:26]}  g5 {[%clk 0:00:08]} 43. h3 {[%clk 0:00:25]}  Kg7 {[%clk 0:00:09]} 44. Kg3 {[%clk 0:00:13]}  Bxc5 {[%clk 0:00:08]} 45. Kg4 {[%clk 0:00:12]}  Bxe3 {[%clk 0:00:06]} 46. Rg8+ {[%clk 0:00:11]}  Kh7 {[%clk 0:00:05]} 47. Rh8+ {[%clk 0:00:12]}  Kg7 {[%clk 0:00:05]} 48. Rbg8+ {[%clk 0:00:12]}  Kf7 {[%clk 0:00:05]} 49. Rf8+ {[%clk 0:00:13]}  Ke7 {[%clk 0:00:05]} 50. Rxf6 {[%clk 0:00:12]}  Kxf6 {[%clk 0:00:06]} 51. Rf8+ {[%clk 0:00:10]}  Kg6 {[%clk 0:00:06]} 52. Rg8+ {[%clk 0:00:10]}  Kf6 {[%clk 0:00:06]} 53. Rd8 {[%clk 0:00:08]}  Bf4 {[%clk 0:00:06]} 54. g3 {[%clk 0:00:07]}  Bc1 {[%clk 0:00:06]} 55. Rd3 {[%clk 0:00:07]}  a5 {[%clk 0:00:04]} 56. h4 {[%clk 0:00:07]}  gxh4 {[%clk 0:00:04]} 57. Kxh4 {[%clk 0:00:08]}  Bg5+ {[%clk 0:00:03]} 58. Kg4 {[%clk 0:00:07]}  Bc1 {[%clk 0:00:03]} 59. f4 {[%clk 0:00:07]}  Be4 {[%clk 0:00:03]} 60. Rd6+ {[%clk 0:00:06]}  Ke7 {[%clk 0:00:00]} 61. Rd1 {[%clk 0:00:05]} 1-0


[Site "https://www.chess.com"]